{"text_format":"1","workbook":"xlsx","n_sheets":4,"sheets":["Dados do veículo","Ensaio MCT","Ensaio SCT Urbano","Ensaio SCT Estrada"],"not_rendered":{"charts":0,"images":4,"macros":1,"external_links":0,"defined_names":2,"comments":0,"pivot_tables":0},"unopened":[],"bounds":{"document_bytes":16777216,"sheet_cells":100000,"rows_first":2000,"rows_last":500,"rows_between":2000,"halvings":0,"cell_chars":16384,"cell_head_chars":4096},"cells_cut":0,"cells_raw":0,"read":"whole","date_system":"1900"}

{"sheet":"Dados do veículo","index":0,"n_rows":26,"n_cols":5,"rows_kept":26,"cut":false,"hidden":false,"merged":[]}
[null,null,"Cálculo de veículos elétricos - versão 1"]
[null,null,"Informações gerais do veículo e do ensaio"]
[null,null,"Av. Prof. Frederico Hermann Jr., 345 - Alto de Pinheiros - São Paulo/SP - Tel.:(11)3133-3779"]
["Informações sobre o veículo"]
["Id do veículo"]
["Chassis do veículo"]
["Nº do processo"]
["Massa em ordem de marcha",null,null,null,"kg"]
["Tensão nominal da bateria",null,null,null,"V"]
["Capacidade nominal da bateria",null,null,null,"Ah"]
[]
[]
["Informações sobre o ensaio"]
["Laboratório"]
["Norma utilizada",null,null,"SAE J1634"]
["Modo de condução utilizado"]
["Id do dinamômetro"]
["Tipo de dinamômetro"]
[]
[]
[]
["Tipo de teste executado:"]
[]
[]
[]
["Observações gerais:"]

{"sheet":"Ensaio MCT","index":1,"n_rows":44,"n_cols":6,"rows_kept":44,"cut":false,"hidden":false,"merged":[]}
[null,null,"Cálculo de veículos elétricos - versão 1"]
[null,null,"Dados e resultados do ensaio MCT (Multi-Cycle Test)"]
[null,null,"Av. Prof. Frederico Hermann Jr., 345 - Alto de Pinheiros - São Paulo/SP - Tel.:(11)3133-3779"]
["Dados referentes ao ensaio e a recarga do veículo"]
[]
["Energia de recarga AC - Eac",null,null,null,"Wh"]
["Recarga DC - Cc",null,null,null,"Ah"]
["Descarga DC - Cd",null,null,null,"Ah"]
[]
[null,null,"Fase","Distância (km)","Edc (DC Wh)"]
[null,null,"UDDS1"]
[null,null,"HFEDS1"]
[null,null,"UDDS2"]
[null,null,"CSCm"]
[null,null,"UDDS3"]
[null,null,"HFEDS2"]
[null,null,"UDDS4"]
[null,null,"CSCf"]
[]
["Resultados por fase"]
[]
[null,null,"Fase","ECdc (Wh/km)","Fator K"]
[null,null,"UDDS1",{"$f":"IFERROR(E11/D11,\"\")","v":""},{"$f":"IFERROR($E$11/$C$41,\"\")","v":""}]
[null,null,"HFEDS1","",{"$f":"IF(ISNUMBER(D24),0.5,\"\")","v":""}]
[null,null,"UDDS2","",{"$f":"IFERROR((1-$E$23)/3,\"\")","v":""}]
[null,null,"CSCm",""]
[null,null,"UDDS3","",{"$f":"IFERROR((1-$E$23)/3,\"\")","v":""}]
[null,null,"HFEDS2","",{"$f":"IF(ISNUMBER(D28),0.5,\"\")","v":""}]
[null,null,"UDDS4","",{"$f":"IFERROR((1-$E$23)/3,\"\")","v":""}]
[null,null,"CSCf",""]
[]
["Resultados por ciclo"]
[]
["Ciclo",null,"ECdc (Wh/km)","ECac (Wh/km)","Alcance (km)","ECac (l/100km)"]
["Urbano",null,{"$f":"IFERROR(IF(COUNT(D23,E23,D25,E25,D27,E27,D29,E29)>0,D23*E23+D25*E25+D27*E27+D29*E29,\"\"),\"\")","v":""},{"$f":"IFERROR($C$43*C35,\"\")","v":""},{"$f":"IFERROR($C$41/C35,\"\")","v":""},{"$f":"IFERROR((D35*WhparaMJ*100)/E22cal,\"\")","v":""}]
["Estrada",null,{"$f":"IFERROR(D24*E24+D28*E28,\"\")","v":""},{"$f":"IFERROR($C$43*C36,\"\")","v":""},{"$f":"IFERROR($C$41/C36,\"\")","v":""},{"$f":"IFERROR((D36*WhparaMJ*100)/E22cal,\"\")","v":""}]
["Combinado",null,{"$f":"IFERROR(0.55*C35+0.45*C36,\"\")","v":""},{"$f":"IFERROR(0.55*D35+0.45*D36,\"\")","v":""},{"$f":"IFERROR(0.55*E35+0.45*E36,\"\")","v":""},{"$f":"IFERROR((D37*WhparaMJ*100)/E22cal,\"\")","v":""}]
[]
["Resultados Gerais"]
[]
["UBE",null,{"$f":"IFERROR(IF(COUNT(E11:E18)=0,\"\",SUM(E11:E18)),\"\")","v":""},null,"Energia útil da bateria"]
["FRE",null,{"$f":"IF(ISNUMBER(D6),D6,\"\")","v":""},null,"Energia total de recarga"]
["RAF",null,{"$f":"IFERROR(C42/C41,\"\")","v":""},null,"Fator de realocação de carga"]
["CR",null,{"$f":"IFERROR(ABS(D7)/ABS(D8),\"\")","v":""},{"$f":"IF(ISNUMBER(C44),IF(C44<0.97,\"teste inválido\",\"teste válido\"),\"\")","v":""},"Recuperação de carga"]

{"sheet":"Ensaio SCT Urbano","index":2,"n_rows":42,"n_cols":6,"rows_kept":42,"cut":false,"hidden":true,"merged":[]}
[null,null,"Cálculo de veículos elétricos - versão 1"]
[null,null,"Dados e resultados do ensaio SCT (Single-Cycle Test) Urbano"]
[null,null,"Av. Prof. Frederico Hermann Jr., 345 - Alto de Pinheiros - São Paulo/SP - Tel.:(11)3133-3779"]
["Recarga e consumo de carga do veículo"]
["Energia de recarga AC - Eac",null,null,null,"Wh"]
["Recarga DC - Cc",null,null,null,"Ah"]
["Descarga DC - Cd",null,null,null,"Ah"]
[]
["Resultados por ciclo"]
[]
["Ciclo",null,"ECdc (Wh/km)","ECac (Wh/km)","Alcance (km)","ECac (l/100km)"]
["Urbano",null,{"$f":"IFERROR((SUM(D23:D42))/(SUM(C23:C42)),\"\")","v":""},{"$f":"IFERROR(C17/E12,\"\")","v":""},{"$f":"IFERROR(IF(COUNT(C23:C42)>0,SUM(C23:C42),\"\"),\"\")","v":""},{"$f":"IFERROR((D12*WhparaMJ*100)/E22cal,\"\")","v":""}]
[]
["Resultados Gerais"]
[]
["UBE",null,{"$f":"IFERROR(IF(COUNT(D23:D42)=0,\"\",SUM(D23:D42)),\"\")","v":""},null,"Energia útil da bateria"]
["FRE",null,{"$f":"IF(ISNUMBER(D5),D5,\"\")","v":""},null,"Energia total de recarga"]
["RAF",null,{"$f":"IFERROR(C17/C16,\"\")","v":""},null,"Fator de realocação de carga"]
["CR",null,{"$f":"IFERROR(ABS(D6)/ABS(D7),\"\")","v":""},{"$f":"IF(ISNUMBER(C19),IF(C19<0.97,\"teste inválido\",\"teste válido\"),\"\")","v":""},"Recuperação de carga"]
[]
[null,"Dados das fases",null,null,"Resultados por fase"]
[null,"Fase","Distância (km)","Edc (DC Wh)","ECdc (Wh/km)"]
[null,{"$f":"IF(ISNUMBER(E23),\"UDDS\"&COUNT($E$23:E23),\"\")","v":""},null,null,{"$f":"IFERROR(D23/C23,\"\")","v":""}]
[null,{"$f":"IF(ISNUMBER(E24),\"UDDS\"&COUNT($E$23:E24),\"\")","v":""},null,null,{"$f":"IFERROR(D24/C24,\"\")","v":""}]
[null,{"$f":"IF(ISNUMBER(E25),\"UDDS\"&COUNT($E$23:E25),\"\")","v":""},null,null,""]
[null,{"$f":"IF(ISNUMBER(E26),\"UDDS\"&COUNT($E$23:E26),\"\")","v":""},null,null,""]
[null,{"$f":"IF(ISNUMBER(E27),\"UDDS\"&COUNT($E$23:E27),\"\")","v":""},null,null,""]
[null,{"$f":"IF(ISNUMBER(E28),\"UDDS\"&COUNT($E$23:E28),\"\")","v":""},null,null,""]
[null,{"$f":"IF(ISNUMBER(E29),\"UDDS\"&COUNT($E$23:E29),\"\")","v":""},null,null,""]
[null,{"$f":"IF(ISNUMBER(E30),\"UDDS\"&COUNT($E$23:E30),\"\")","v":""},null,null,""]
[null,{"$f":"IF(ISNUMBER(E31),\"UDDS\"&COUNT($E$23:E31),\"\")","v":""},null,null,""]
[null,{"$f":"IF(ISNUMBER(E32),\"UDDS\"&COUNT($E$23:E32),\"\")","v":""},null,null,""]
[null,{"$f":"IF(ISNUMBER(E33),\"UDDS\"&COUNT($E$23:E33),\"\")","v":""},null,null,""]
[null,{"$f":"IF(ISNUMBER(E34),\"UDDS\"&COUNT($E$23:E34),\"\")","v":""},null,null,""]
[null,{"$f":"IF(ISNUMBER(E35),\"UDDS\"&COUNT($E$23:E35),\"\")","v":""},null,null,""]
[null,{"$f":"IF(ISNUMBER(E36),\"UDDS\"&COUNT($E$23:E36),\"\")","v":""},null,null,""]
[null,{"$f":"IF(ISNUMBER(E37),\"UDDS\"&COUNT($E$23:E37),\"\")","v":""},null,null,""]
[null,{"$f":"IF(ISNUMBER(E38),\"UDDS\"&COUNT($E$23:E38),\"\")","v":""},null,null,""]
[null,{"$f":"IF(ISNUMBER(E39),\"UDDS\"&COUNT($E$23:E39),\"\")","v":""},null,null,""]
[null,{"$f":"IF(ISNUMBER(E40),\"UDDS\"&COUNT($E$23:E40),\"\")","v":""},null,null,""]
[null,{"$f":"IF(ISNUMBER(E41),\"UDDS\"&COUNT($E$23:E41),\"\")","v":""},null,null,""]
[null,{"$f":"IF(ISNUMBER(E42),\"UDDS\"&COUNT($E$23:E42),\"\")","v":""},null,null,""]

{"sheet":"Ensaio SCT Estrada","index":3,"n_rows":44,"n_cols":6,"rows_kept":44,"cut":false,"hidden":true,"merged":[]}
[null,null,"Cálculo de veículos elétricos - versão 1"]
[null,null,"Dados e resultados do ensaio SCT (Single-Cycle Test) Estrada"]
[null,null,"Av. Prof. Frederico Hermann Jr., 345 - Alto de Pinheiros - São Paulo/SP - Tel.:(11)3133-3779"]
["Recarga e consumo de carga do veículo"]
["Energia de recarga AC - Eac",null,null,null,"Wh"]
["Recarga DC - Cc",null,null,null,"Ah"]
["Descarga DC - Cd",null,null,null,"Ah"]
[]
["Resultados por ciclo"]
[]
["Ciclo",null,"ECdc (Wh/km)","ECac (Wh/km)","Alcance (km)","ECac (l/100km)"]
["Urbano",null,{"$f":"'Ensaio SCT Urbano'!C12","v":""},{"$f":"'Ensaio SCT Urbano'!D12","v":""},{"$f":"'Ensaio SCT Urbano'!E12","v":""},{"$f":"'Ensaio SCT Urbano'!F12","v":""}]
["Estrada",null,{"$f":"IFERROR((SUM(D25:D44))/(SUM(C25:C44)),\"\")","v":""},{"$f":"IFERROR(C19/E13,\"\")","v":""},{"$f":"IFERROR(IF(COUNT(C25:C44)>0,SUM(C25:C44),\"\"),\"\")","v":""},{"$f":"IFERROR((D13*WhparaMJ*100)/E22cal,\"\")","v":""}]
["Combinado",null,{"$f":"IFERROR(0.55*C12+0.45*C13,\"\")","v":""},{"$f":"IFERROR(0.55*D12+0.45*D13,\"\")","v":""},"",{"$f":"IFERROR((D14*WhparaMJ*100)/E22cal,\"\")","v":""}]
[]
["Resultados Gerais"]
[]
["UBE",null,{"$f":"IFERROR(IF(COUNT(D25:D44)=0,\"\",SUM(D25:D44)),\"\")","v":""},null,"Energia útil da bateria"]
["FRE",null,{"$f":"IF(ISNUMBER(D5),D5,\"\")","v":""},null,"Energia total de recarga"]
["RAF",null,{"$f":"IFERROR(C19/C18,\"\")","v":""},null,"Fator de realocação de carga"]
["CR",null,{"$f":"IFERROR(ABS(D6)/ABS(D7),\"\")","v":""},{"$f":"IF(ISNUMBER(C21),IF(C21<0.97,\"teste inválido\",\"teste válido\"),\"\")","v":""},"Recuperação de carga"]
[]
[null,"Dados das fases",null,null,"Resultados por fase"]
[null,"Fase","Distância (km)","Edc (DC Wh)","ECdc (Wh/km)"]
[null,{"$f":"IF(ISNUMBER(E25),\"HFEDS\"&COUNT($E$25:E25),\"\")","v":""},null,null,{"$f":"IFERROR(D25/C25,\"\")","v":""}]
[null,{"$f":"IF(ISNUMBER(E26),\"HFEDS\"&COUNT($E$25:E26),\"\")","v":""},null,null,{"$f":"IFERROR(D26/C26,\"\")","v":""}]
[null,{"$f":"IF(ISNUMBER(E27),\"HFEDS\"&COUNT($E$25:E27),\"\")","v":""},null,null,""]
[null,{"$f":"IF(ISNUMBER(E28),\"HFEDS\"&COUNT($E$25:E28),\"\")","v":""},null,null,""]
[null,{"$f":"IF(ISNUMBER(E29),\"HFEDS\"&COUNT($E$25:E29),\"\")","v":""},null,null,""]
[null,{"$f":"IF(ISNUMBER(E30),\"HFEDS\"&COUNT($E$25:E30),\"\")","v":""},null,null,""]
[null,{"$f":"IF(ISNUMBER(E31),\"HFEDS\"&COUNT($E$25:E31),\"\")","v":""},null,null,""]
[null,{"$f":"IF(ISNUMBER(E32),\"HFEDS\"&COUNT($E$25:E32),\"\")","v":""},null,null,""]
[null,{"$f":"IF(ISNUMBER(E33),\"HFEDS\"&COUNT($E$25:E33),\"\")","v":""},null,null,""]
[null,{"$f":"IF(ISNUMBER(E34),\"HFEDS\"&COUNT($E$25:E34),\"\")","v":""},null,null,""]
[null,{"$f":"IF(ISNUMBER(E35),\"HFEDS\"&COUNT($E$25:E35),\"\")","v":""},null,null,""]
[null,{"$f":"IF(ISNUMBER(E36),\"HFEDS\"&COUNT($E$25:E36),\"\")","v":""},null,null,""]
[null,{"$f":"IF(ISNUMBER(E37),\"HFEDS\"&COUNT($E$25:E37),\"\")","v":""},null,null,""]
[null,{"$f":"IF(ISNUMBER(E38),\"HFEDS\"&COUNT($E$25:E38),\"\")","v":""},null,null,""]
[null,{"$f":"IF(ISNUMBER(E39),\"HFEDS\"&COUNT($E$25:E39),\"\")","v":""},null,null,""]
[null,{"$f":"IF(ISNUMBER(E40),\"HFEDS\"&COUNT($E$25:E40),\"\")","v":""},null,null,""]
[null,{"$f":"IF(ISNUMBER(E41),\"HFEDS\"&COUNT($E$25:E41),\"\")","v":""},null,null,""]
[null,{"$f":"IF(ISNUMBER(E42),\"HFEDS\"&COUNT($E$25:E42),\"\")","v":""},null,null,""]
[null,{"$f":"IF(ISNUMBER(E43),\"HFEDS\"&COUNT($E$25:E43),\"\")","v":""},null,null,""]
[null,{"$f":"IF(ISNUMBER(E44),\"HFEDS\"&COUNT($E$25:E44),\"\")","v":""},null,null,""]